[Event "2025 Chess.com Botwinnik Rapid toernooi"]
[Site "Zoetermeer, Netherlands"]
[Date "????.??.??"]
[Round "7.1"]
[White "Lai, Hing Ting"]
[Black "Vrolijk, Liam"]
[Result "1/2-1/2"]
[TimeControl "15+5"]
[WhiteTitle "IM"]
[BlackTitle "GM"]
[WhiteFideId "8324987"]
[BlackFideId "8428871"]
[WhiteElo "2484"]
[BlackElo "2510"]

1. d4 {[%clk 00:15:04]} {[%emt 00:00:06]} d5 {[%clk 00:15:04]} {[%emt
00:00:06]} 2. Nf3 {[%clk 00:15:07]} {[%emt 00:00:02]} Nf6 {[%clk 00:15:07]}
{[%emt 00:00:02]} 3. Bf4 {[%clk 00:14:43]} {[%emt 00:00:29]} c5 {[%clk
00:15:01]} {[%emt 00:00:11]} 4. e3 {[%clk 00:14:47]} {[%emt 00:00:01]} Nc6
{[%clk 00:14:48]} {[%emt 00:00:18]} 5. c3 {[%clk 00:14:49]} {[%emt 00:00:03]}
Qb6 {[%clk 00:14:44]} {[%emt 00:00:09]} 6. Qb3 {[%clk 00:14:53]} c4 {[%clk
00:14:27]} {[%emt 00:00:22]} 7. Qc2 {[%clk 00:14:57]} Bf5 {[%clk 00:14:18]}
{[%emt 00:00:14]} 8. Qc1 {[%clk 00:15:02]} {[%emt 00:00:01]} e6 {[%clk
00:13:32]} {[%emt 00:00:50]} 9. Nbd2 {[%clk 00:15:04]} {[%emt 00:00:03]} Qd8
{[%clk 00:13:00]} {[%emt 00:00:36]} 10. h3 {[%clk 00:15:05]} {[%emt 00:00:05]}
h6 {[%clk 00:13:02]} {[%emt 00:00:03]} 11. Be2 {[%clk 00:15:05]} {[%emt
00:00:05]} Be7 {[%clk 00:13:03]} {[%emt 00:00:03]} 12. O-O {[%clk 00:15:06]}
{[%emt 00:00:04]} O-O {[%clk 00:13:06]} {[%emt 00:00:02]} 13. b3 {[%emt
00:00:22]} b5 {[%clk 00:13:05]} {[%emt 00:00:04]} 14. Ne5 {[%clk 00:13:46]}
{[%emt 00:01:09]} Nxe5 {[%clk 00:12:50]} {[%emt 00:00:20]} 15. Bxe5 {[%clk
00:13:49]} {[%emt 00:00:03]} Qb6 {[%clk 00:11:55]} {[%emt 00:01:00]} 16. Qb2
{[%clk 00:13:07]} {[%emt 00:00:47]} Rfc8 {[%clk 00:11:46]} {[%emt 00:00:14]} 17.
a4 {[%clk 00:11:05]} {[%emt 00:02:07]} a6 {[%clk 00:10:27]} {[%emt 00:01:24]}
18. bxc4 {[%clk 00:11:01]} {[%emt 00:00:10]} dxc4 {[%clk 00:10:24]} {[%emt
00:00:08]} 19. Bxf6 {[%clk 00:10:07]} {[%emt 00:00:58]} 1/2-1/2

[Event "2025 Chess.com Botwinnik Rapid toernooi"]
[Site "Zoetermeer, Netherlands"]
[Date "????.??.??"]
[Round "7.2"]
[White "Smeets, Kobe"]
[Black "Van Vliet, Jeffrey"]
[Result "0-1"]
[TimeControl "15+5"]
[WhiteTitle "FM"]
[BlackTitle "FM"]
[WhiteFideId "8659420"]
[BlackFideId "7890839"]
[WhiteElo "2364"]
[BlackElo "2387"]

1. e4 {[%clk 00:15:08]} {[%emt 00:00:02]} c5 {[%clk 00:15:08]} {[%emt
00:00:02]} 2. Nf3 {[%clk 00:15:11]} {[%emt 00:00:02]} e6 {[%clk 00:15:11]} 3.
d4 {[%clk 00:15:15]} {[%emt 00:00:01]} cxd4 {[%clk 00:15:15]} {[%emt 00:00:01]}
4. Nxd4 {[%clk 00:15:19]} a6 {[%clk 00:15:18]} {[%emt 00:00:02]} 5. Bd3 {[%clk
00:15:23]} {[%emt 00:00:02]} Qc7 {[%clk 00:15:18]} {[%emt 00:00:04]} 6. O-O
{[%clk 00:15:26]} {[%emt 00:00:03]} Nc6 {[%clk 00:15:12]} {[%emt 00:00:11]} 7.
Nxc6 {[%clk 00:15:20]} {[%emt 00:00:12]} dxc6 {[%clk 00:15:13]} {[%emt
00:00:03]} 8. Nd2 {[%clk 00:15:05]} {[%emt 00:00:19]} e5 {[%clk 00:15:13]}
{[%emt 00:00:05]} 9. a4 {[%clk 00:15:01]} {[%emt 00:00:09]} a5 {[%clk
00:15:14]} {[%emt 00:00:04]} 10. Nc4 {[%clk 00:14:51]} {[%emt 00:00:15]} Nf6
{[%clk 00:14:57]} {[%emt 00:00:21]} 11. Be3 {[%clk 00:14:25]} {[%emt 00:00:31]}
Be6 {[%clk 00:14:57]} {[%emt 00:00:06]} 12. Bb6 {[%clk 00:14:21]} {[%emt
00:00:09]} Qb8 {[%clk 00:14:53]} {[%emt 00:00:08]} 13. Nxa5 {[%clk 00:13:41]}
{[%emt 00:00:46]} Nd7 {[%clk 00:14:48]} {[%emt 00:00:09]} 14. Nxc6 {[%clk
00:10:24]} {[%emt 00:03:22]} bxc6 {[%clk 00:14:43]} {[%emt 00:00:10]} 15. Be3
{[%clk 00:10:28]} {[%emt 00:00:01]} Bc5 {[%clk 00:13:47]} {[%emt 00:01:01]} 16.
Bxc5 {[%clk 00:09:53]} {[%emt 00:00:40]} Nxc5 {[%clk 00:13:49]} {[%emt
00:00:02]} 17. b3 {[%clk 00:09:58]} {[%emt 00:00:01]} O-O {[%clk 00:13:47]}
{[%emt 00:00:06]} 18. Qe2 {[%clk 00:10:02]} {[%emt 00:00:02]} Qb4 {[%clk
00:13:21]} {[%emt 00:00:30]} 19. Rfd1 {[%clk 00:08:26]} {[%emt 00:01:41]} Rfd8
{[%clk 00:13:12]} {[%emt 00:00:14]} 20. Qe3 {[%clk 00:08:03]} {[%emt 00:00:29]}
Qc3 {[%clk 00:12:37]} {[%emt 00:00:40]} 21. Rab1 {[%clk 00:07:12]} {[%emt
00:00:56]} g6 {[%clk 00:10:55]} {[%emt 00:01:47]} 22. b4 {[%clk 00:04:45]}
{[%emt 00:02:33]} Nxa4 {[%clk 00:09:31]} {[%emt 00:01:29]} 23. Rdc1 {[%clk
00:01:49]} {[%emt 00:03:01]} Qd4 {[%clk 00:09:04]} {[%emt 00:00:31]} 24. Qh6
{[%clk 00:01:13]} {[%emt 00:00:41]} Nc3 {[%clk 00:08:50]} {[%emt 00:00:19]} 0-1

[Event "2025 Chess.com Botwinnik Rapid toernooi"]
[Site "Zoetermeer, Netherlands"]
[Date "????.??.??"]
[Round "7.3"]
[White "Bannink, Bernard"]
[Black "Tjiam, Dharma"]
[Result "0-1"]
[TimeControl "15+5"]
[WhiteTitle "FM"]
[BlackTitle "IM"]
[WhiteFideId "5987113"]
[BlackFideId "6383751"]
[WhiteElo "2213"]
[BlackElo "2364"]

1. d4 {[%clk 00:15:09]} Nf6 {[%clk 00:15:08]} {[%emt 00:00:03]} 2. Nc3 {[%clk
00:15:13]} {[%emt 00:00:02]} g6 {[%clk 00:15:07]} {[%emt 00:00:06]} 3. e4
{[%clk 00:15:16]} {[%emt 00:00:02]} d6 {[%clk 00:15:11]} 4. Bg5 {[%clk
00:15:18]} {[%emt 00:00:03]} Bg7 {[%clk 00:15:14]} {[%emt 00:00:02]} 5. e5
{[%clk 00:15:22]} {[%emt 00:00:02]} Nfd7 {[%clk 00:14:13]} {[%emt 00:01:05]} 6.
f4 {[%clk 00:15:25]} {[%emt 00:00:01]} h6 {[%clk 00:13:25]} {[%emt 00:00:53]} 7.
Bh4 {[%clk 00:15:28]} {[%emt 00:00:02]} g5 {[%clk 00:13:06]} {[%emt 00:00:25]}
8. fxg5 {[%clk 00:15:07]} {[%emt 00:00:26]} dxe5 {[%clk 00:13:08]} {[%emt
00:00:02]} 9. gxh6 {[%clk 00:14:08]} {[%emt 00:01:04]} Rxh6 {[%clk 00:12:37]}
{[%emt 00:00:36]} 10. Bg5 {[%clk 00:13:43]} {[%emt 00:00:28]} Rg6 {[%clk
00:12:11]} {[%emt 00:00:33]} 11. h4 {[%clk 00:13:14]} {[%emt 00:00:34]} exd4
{[%clk 00:11:59]} {[%emt 00:00:18]} 12. Ne4 {[%clk 00:12:49]} {[%emt 00:00:31]}
Re6 {[%clk 00:11:49]} {[%emt 00:00:15]} 13. Bd3 {[%clk 00:12:45]} {[%emt
00:00:09]} Nc5 {[%clk 00:11:08]} {[%emt 00:00:46]} 14. Qf3 {[%clk 00:12:23]}
{[%emt 00:00:26]} Qd5 {[%clk 00:11:00]} {[%emt 00:00:13]} 15. Ne2 {[%clk
00:12:17]} {[%emt 00:00:12]} Nxe4 {[%clk 00:11:02]} {[%emt 00:00:03]} 16. O-O
{[%clk 00:12:00]} {[%emt 00:00:21]} Nf6 {[%clk 00:10:46]} {[%emt 00:00:21]} 17.
Qg3 {[%clk 00:11:15]} {[%emt 00:00:47]} Bf8 {[%clk 00:07:38]} {[%emt 00:03:16]}
18. Nf4 {[%clk 00:11:04]} {[%emt 00:00:15]} Qd6 {[%clk 00:07:32]} {[%emt
00:00:11]} 19. Qh3 {[%clk 00:10:33]} {[%emt 00:00:37]} Nc6 {[%clk 00:07:32]}
{[%emt 00:00:05]} 20. Nxe6 {[%clk 00:10:33]} {[%emt 00:00:05]} Bxe6 {[%clk
00:07:34]} {[%emt 00:00:02]} 21. Bf5 {[%clk 00:10:16]} {[%emt 00:00:22]} O-O-O
{[%clk 00:06:44]} {[%emt 00:00:56]} 22. Rae1 {[%clk 00:09:52]} {[%emt
00:00:29]} Bxf5 {[%clk 00:06:18]} {[%emt 00:00:31]} 23. Qxf5+ {[%clk 00:09:55]}
{[%emt 00:00:01]} Kb8 {[%clk 00:06:21]} {[%emt 00:00:02]} 24. Bxf6 {[%clk
00:09:57]} {[%emt 00:00:03]} exf6 {[%clk 00:05:44]} {[%emt 00:00:42]} 25. Qxf6
{[%clk 00:10:01]} {[%emt 00:00:02]} Qxf6 {[%clk 00:05:08]} {[%emt 00:00:41]} 26.
Rxf6 {[%clk 00:10:04]} {[%emt 00:00:01]} Be7 {[%clk 00:05:01]} {[%emt
00:00:11]} 27. Rxf7 {[%clk 00:09:11]} {[%emt 00:00:59]} Bxh4 {[%clk 00:05:04]}
{[%emt 00:00:02]} 28. Re4 {[%clk 00:09:15]} {[%emt 00:00:01]} Bg5 {[%clk
00:05:01]} {[%emt 00:00:07]} 29. a3 {[%clk 00:09:01]} {[%emt 00:00:20]} a5
{[%clk 00:04:41]} {[%emt 00:00:25]} 30. Kf1 {[%clk 00:08:49]} {[%emt 00:00:16]}
Bc1 {[%clk 00:04:09]} {[%emt 00:00:38]} 31. g4 {[%clk 00:08:13]} {[%emt
00:00:41]} Rg8 {[%clk 00:03:52]} {[%emt 00:00:21]} 32. b4 {[%clk 00:08:04]}
{[%emt 00:00:14]} Bxa3 {[%clk 00:03:36]} {[%emt 00:00:21]} 33. bxa5 {[%clk
00:07:46]} {[%emt 00:00:22]} Bd6 {[%clk 00:02:56]} {[%emt 00:00:45]} 34. Ke2
{[%clk 00:07:21]} {[%emt 00:00:31]} Ne5 {[%clk 00:01:28]} {[%emt 00:01:34]} 35.
Rf5 {[%clk 00:06:58]} {[%emt 00:00:28]} Nxg4 {[%clk 00:01:26]} {[%emt
00:00:07]} 36. Rxd4 {[%clk 00:06:38]} {[%emt 00:00:25]} Ne5 {[%clk 00:01:30]}
{[%emt 00:00:01]} 37. Re4 {[%clk 00:06:32]} {[%emt 00:00:09]} Nc6 {[%clk
00:01:34]} {[%emt 00:00:02]} 38. Kd3 {[%clk 00:04:54]} {[%emt 00:01:42]} Ka7
{[%clk 00:01:24]} {[%emt 00:00:17]} 39. Ra4 {[%clk 00:04:28]} {[%emt 00:00:30]}
Rg3+ {[%clk 00:01:26]} {[%emt 00:00:04]} 40. Kd2 {[%clk 00:04:15]} {[%emt
00:00:15]} Bb4+ {[%clk 00:01:29]} {[%emt 00:00:05]} 41. Kc1 {[%clk 00:04:07]}
{[%emt 00:00:09]} Rc3 {[%clk 00:01:32]} {[%emt 00:00:07]} 42. Kb2 {[%clk
00:03:51]} {[%emt 00:00:19]} Rc5 {[%clk 00:01:32]} {[%emt 00:00:06]} 43. Rxc5
{[%clk 00:03:51]} {[%emt 00:00:06]} Bxc5 {[%clk 00:01:35]} {[%emt 00:00:02]} 44.
Kc3 {[%clk 00:03:44]} {[%emt 00:00:11]} Ka6 {[%clk 00:01:39]} {[%emt 00:00:02]}
45. Kc4 {[%clk 00:03:45]} {[%emt 00:00:03]} Bd6 {[%clk 00:01:43]} {[%emt
00:00:03]} 46. Ra2 {[%clk 00:03:43]} {[%emt 00:00:05]} Nxa5+ {[%clk 00:01:47]}
{[%emt 00:00:04]} 47. Kd5 {[%clk 00:03:45]} b6 {[%clk 00:01:48]} {[%emt
00:00:06]} 48. c4 {[%clk 00:03:46]} {[%emt 00:00:03]} Bc5 {[%clk 00:01:46]}
{[%emt 00:00:07]} 49. Ke4 {[%clk 00:03:30]} {[%emt 00:00:21]} Kb7 {[%clk
00:01:50]} {[%emt 00:00:01]} 50. Kd3 {[%clk 00:03:34]} {[%emt 00:00:01]} Nc6
{[%clk 00:01:52]} {[%emt 00:00:03]} 51. Rh2 {[%clk 00:03:36]} {[%emt 00:00:02]}
Bd6 {[%clk 00:01:54]} {[%emt 00:00:04]} 52. Rg2 {[%clk 00:03:39]} {[%emt
00:00:02]} Ne5+ {[%clk 00:01:52]} {[%emt 00:00:07]} 53. Kc3 {[%clk 00:03:41]}
{[%emt 00:00:01]} Kc6 {[%clk 00:01:56]} {[%emt 00:00:03]} 54. Rg5 {[%clk
00:03:37]} {[%emt 00:00:06]} Nd7 {[%clk 00:01:58]} {[%emt 00:00:05]} 55. Rh5
{[%clk 00:03:39]} {[%emt 00:00:02]} Ne5 {[%clk 00:01:14]} {[%emt 00:00:49]} 56.
Kd4 {[%clk 00:03:28]} {[%emt 00:00:14]} Nd7 {[%clk 00:01:14]} {[%emt 00:00:08]}
57. Kc3 {[%clk 00:03:32]} {[%emt 00:00:01]} Nf6 {[%clk 00:01:17]} {[%emt
00:00:02]} 58. Rh6 {[%clk 00:03:14]} {[%emt 00:00:20]} Kc5 {[%clk 00:01:16]}
{[%emt 00:00:09]} 59. Kd3 {[%clk 00:03:06]} {[%emt 00:00:10]} Be5 {[%clk
00:01:20]} {[%emt 00:00:04]} 60. Rg6 {[%clk 00:03:07]} {[%emt 00:00:03]} Kb4
{[%clk 00:01:14]} {[%emt 00:00:11]} 61. Rg5 {[%clk 00:03:09]} {[%emt 00:00:03]}
Nd7 {[%clk 00:01:06]} {[%emt 00:00:13]} 62. Rg4 {[%clk 00:02:53]} {[%emt
00:00:21]} Nc5+ {[%clk 00:01:09]} {[%emt 00:00:03]} 63. Kc2 {[%clk 00:02:57]}
Bd6 {[%clk 00:01:06]} {[%emt 00:00:08]} 64. Rh4 {[%clk 00:02:51]} {[%emt
00:00:10]} Nd7 {[%clk 00:00:54]} {[%emt 00:00:17]} 65. Kd3 {[%clk 00:01:12]}
{[%emt 00:01:45]} Ne5+ {[%clk 00:00:58]} {[%emt 00:00:01]} 66. Ke4 {[%clk
00:01:16]} Nxc4 {[%clk 00:01:01]} {[%emt 00:00:02]} 67. Kd5 {[%clk 00:01:21]}
b5 {[%clk 00:01:01]} {[%emt 00:00:05]} 68. Kc6 {[%clk 00:01:25]} Ka5 {[%clk
00:01:04]} {[%emt 00:00:01]} 69. Rh8 {[%clk 00:01:17]} {[%emt 00:00:14]} Ne5+
{[%clk 00:01:08]} {[%emt 00:00:02]} 70. Kd5 {[%clk 00:01:21]} b4 {[%clk
00:01:02]} {[%emt 00:00:10]} 71. Ra8+ {[%clk 00:01:25]} {[%emt 00:00:01]} Kb5
{[%clk 00:01:06]} {[%emt 00:00:01]} 72. Rb8+ {[%clk 00:01:29]} {[%emt
00:00:01]} Ka4 {[%clk 00:01:10]} {[%emt 00:00:01]} 73. Ke4 {[%clk 00:01:29]}
{[%emt 00:00:05]} Kb3 {[%clk 00:01:14]} {[%emt 00:00:01]} 74. Rb7 {[%clk
00:01:29]} {[%emt 00:00:05]} Kc2 {[%clk 00:01:18]} {[%emt 00:00:01]} 75. Rb8
{[%clk 00:00:49]} {[%emt 00:00:44]} b3 {[%clk 00:01:22]} {[%emt 00:00:02]} 76.
Rh8 {[%clk 00:00:52]} {[%emt 00:00:01]} b2 {[%clk 00:01:24]} {[%emt 00:00:03]}
77. Rh2+ {[%clk 00:00:55]} {[%emt 00:00:01]} Kb3 {[%clk 00:01:27]} {[%emt
00:00:02]} 78. Rh1 {[%clk 00:00:59]} {[%emt 00:00:01]} Ka2 {[%clk 00:01:31]}
{[%emt 00:00:02]} 79. Rh2 {[%clk 00:01:03]} {[%emt 00:00:01]} Ka1 {[%clk
00:01:35]} {[%emt 00:00:01]} 0-1

[Event "2025 Chess.com Botwinnik Rapid toernooi"]
[Site "Zoetermeer, Netherlands"]
[Date "????.??.??"]
[Round "7.4"]
[White "Polak, Alexander"]
[Black "Bekker, Stefan"]
[Result "0-1"]
[TimeControl "15+5"]
[BlackTitle "FM"]
[WhiteFideId "8250913"]
[BlackFideId "8083141"]
[WhiteElo "2181"]
[BlackElo "2333"]

1. e4 {[%clk 00:15:08]} {[%emt 00:00:01]} c5 {[%clk 00:15:08]} {[%emt
00:00:02]} 2. Nf3 {[%clk 00:15:12]} {[%emt 00:00:02]} d6 {[%clk 00:15:12]}
{[%emt 00:00:01]} 3. d4 {[%clk 00:15:16]} cxd4 {[%clk 00:15:15]} {[%emt
00:00:02]} 4. Nxd4 {[%clk 00:15:19]} {[%emt 00:00:01]} Nf6 {[%clk 00:15:17]}
{[%emt 00:00:03]} 5. Nc3 {[%clk 00:15:23]} {[%emt 00:00:01]} a6 {[%clk
00:15:20]} {[%emt 00:00:02]} 6. Bg5 {[%clk 00:15:27]} {[%emt 00:00:02]} Nbd7
{[%clk 00:15:22]} {[%emt 00:00:03]} 7. Qe2 {[%clk 00:15:27]} {[%emt 00:00:04]}
Qa5 {[%emt 00:00:35]} 8. f4 {[%clk 00:15:01]} e5 {[%clk 00:14:44]} {[%emt
00:00:44]} 9. Nb3 {[%clk 00:14:43]} {[%emt 00:00:23]} Qc7 {[%clk 00:14:37]}
{[%emt 00:00:11]} 10. O-O-O {[%clk 00:14:30]} {[%emt 00:00:19]} h6 {[%clk
00:14:18]} {[%emt 00:00:24]} 11. Bxf6 {[%clk 00:14:29]} {[%emt 00:00:05]} Nxf6
{[%clk 00:14:21]} {[%emt 00:00:02]} 12. Nd5 {[%clk 00:14:22]} {[%emt 00:00:11]}
Nxd5 {[%clk 00:14:15]} {[%emt 00:00:11]} 13. exd5 {[%clk 00:14:26]} {[%emt
00:00:02]} Be7 {[%clk 00:13:23]} {[%emt 00:00:57]} 14. fxe5 {[%clk 00:12:19]}
{[%emt 00:02:12]} dxe5 {[%clk 00:13:26]} {[%emt 00:00:03]} 15. Kb1 {[%clk
00:12:19]} {[%emt 00:00:05]} O-O {[%clk 00:12:37]} {[%emt 00:00:53]} 16. Qh5
{[%clk 00:12:00]} {[%emt 00:00:25]} a5 {[%clk 00:12:19]} {[%emt 00:00:23]} 17.
Nd2 {[%clk 00:11:40]} {[%emt 00:00:25]} a4 {[%clk 00:10:29]} {[%emt 00:01:55]}
18. a3 {[%clk 00:09:34]} {[%emt 00:02:11]} Bd7 {[%clk 00:08:59]} {[%emt
00:01:35]} 19. Ne4 {[%clk 00:08:41]} {[%emt 00:00:58]} Bd6 {[%clk 00:08:25]}
{[%emt 00:00:39]} 20. g4 {[%clk 00:05:55]} {[%emt 00:02:52]} Be8 {[%clk
00:04:56]} {[%emt 00:03:33]} 21. Qh4 {[%clk 00:05:13]} {[%emt 00:00:48]} f5
{[%clk 00:04:10]} {[%emt 00:00:51]} 22. gxf5 {[%clk 00:05:15]} {[%emt
00:00:02]} Rxf5 {[%clk 00:04:13]} {[%emt 00:00:02]} 23. Rg1 {[%clk 00:04:43]}
{[%emt 00:00:37]} Kh8 {[%clk 00:03:54]} {[%emt 00:00:24]} 24. Bd3 {[%clk
00:04:39]} {[%emt 00:00:09]} Rf4 {[%clk 00:03:44]} {[%emt 00:00:15]} 25. Qg3
{[%clk 00:04:30]} {[%emt 00:00:14]} Bf8 {[%clk 00:03:11]} {[%emt 00:00:38]} 26.
d6 {[%clk 00:04:06]} {[%emt 00:00:30]} Qf7 {[%clk 00:03:15]} 27. Nc5 {[%clk
00:03:18]} {[%emt 00:00:53]} Bc6 {[%clk 00:02:23]} {[%emt 00:00:57]} 28. Bg6
{[%clk 00:03:01]} {[%emt 00:00:22]} Qf6 {[%clk 00:02:19]} {[%emt 00:00:08]} 29.
Nd3 {[%clk 00:02:51]} {[%emt 00:00:15]} Bxd6 {[%clk 00:02:14]} {[%emt
00:00:10]} 30. Nxf4 {[%clk 00:02:48]} {[%emt 00:00:08]} exf4 {[%clk 00:02:18]}
{[%emt 00:00:01]} 31. Qd3 {[%clk 00:02:49]} {[%emt 00:00:03]} Bc5 {[%clk
00:01:49]} {[%emt 00:00:34]} 32. Rge1 {[%clk 00:02:42]} {[%emt 00:00:13]} f3
{[%clk 00:01:47]} {[%emt 00:00:07]} 33. Be4 {[%clk 00:02:40]} {[%emt 00:00:07]}
f2 {[%clk 00:01:48]} {[%emt 00:00:04]} 34. Rf1 {[%clk 00:02:35]} {[%emt
00:00:10]} Rb8 {[%clk 00:01:16]} {[%emt 00:00:36]} 35. Qg3 {[%clk 00:02:06]}
{[%emt 00:00:35]} Rf8 {[%clk 00:00:48]} {[%emt 00:00:33]} 36. Bxc6 {[%clk
00:01:57]} {[%emt 00:00:13]} bxc6 {[%clk 00:00:52]} 37. Rd3 {[%clk 00:01:14]}
{[%emt 00:00:48]} Re8 {[%clk 00:00:35]} {[%emt 00:00:22]} 38. Ka2 {[%clk
00:00:45]} {[%emt 00:00:34]} Qe6+ {[%clk 00:00:39]} {[%emt 00:00:01]} 39. b3
{[%clk 00:00:49]} {[%emt 00:00:01]} axb3+ {[%clk 00:00:41]} {[%emt 00:00:03]}
40. Rxb3 {[%clk 00:00:45]} {[%emt 00:00:08]} Qe2 {[%clk 00:00:36]} {[%emt
00:00:10]} 41. Qd3 {[%clk 00:00:43]} {[%emt 00:00:07]} Qe6 {[%clk 00:00:19]}
{[%emt 00:00:22]} 42. Kb2 {[%clk 00:00:22]} {[%emt 00:00:27]} Qe5+ {[%clk
00:00:21]} {[%emt 00:00:03]} 43. Ka2 {[%clk 00:00:16]} {[%emt 00:00:10]} Qxh2
{[%clk 00:00:22]} {[%emt 00:00:04]} 44. Qd7 {[%clk 00:00:14]} {[%emt 00:00:07]}
Rf8 {[%clk 00:00:17]} {[%emt 00:00:10]} 45. Qxc6 {[%clk 00:00:13]} {[%emt
00:00:06]} Bd4 {[%clk 00:00:14]} {[%emt 00:00:08]} 46. Qc4 {[%clk 00:00:09]}
{[%emt 00:00:10]} Qg2 {[%clk 00:00:10]} {[%emt 00:00:10]} 47. Rb7 {[%clk
00:00:08]} {[%emt 00:00:06]} Bf6 {[%clk 00:00:10]} {[%emt 00:00:04]} 48. Rc7
{[%clk 00:00:09]} {[%emt 00:00:05]} Qa8 {[%clk 00:00:10]} {[%emt 00:00:05]} 49.
Rc6 {[%clk 00:00:11]} {[%emt 00:00:03]} Qb7 {[%clk 00:00:13]} {[%emt 00:00:01]}
50. c3 {[%clk 00:00:12]} {[%emt 00:00:04]} Be5 {[%clk 00:00:15]} {[%emt
00:00:04]} 51. Re6 {[%clk 00:00:10]} {[%emt 00:00:07]} Rb8 {[%clk 00:00:11]}
{[%emt 00:00:08]} 52. Qb4 {[%clk 00:00:09]} {[%emt 00:00:06]} Qd5+ {[%clk
00:00:12]} {[%emt 00:00:04]} 53. c4 {[%clk 00:00:11]} {[%emt 00:00:03]} Qxe6
{[%clk 00:00:14]} {[%emt 00:00:03]} 0-1

[Event "2025 Chess.com Botwinnik Rapid toernooi"]
[Site "Zoetermeer, Netherlands"]
[Date "????.??.??"]
[Round "7.5"]
[White "Grochal, Joey"]
[Black "Timmerman, Gert"]
[Result "1-0"]
[TimeControl "15+5"]
[WhiteTitle "FM"]
[BlackTitle "FM"]
[WhiteFideId "7926875"]
[BlackFideId "6937590"]
[WhiteElo "2272"]
[BlackElo "2171"]

1. d4 {[%clk 00:15:08]} f5 {[%clk 00:15:07]} {[%emt 00:00:03]} 2. c4 {[%clk
00:15:12]} {[%emt 00:00:03]} Nf6 {[%clk 00:15:11]} {[%emt 00:00:01]} 3. Nf3
{[%clk 00:15:15]} {[%emt 00:00:02]} g6 {[%clk 00:15:14]} {[%emt 00:00:02]} 4.
Nc3 {[%clk 00:15:19]} {[%emt 00:00:02]} Bg7 {[%clk 00:15:18]} 5. g3 {[%clk
00:15:21]} {[%emt 00:00:02]} O-O {[%clk 00:15:21]} {[%emt 00:00:03]} 6. Bg2
{[%clk 00:15:24]} {[%emt 00:00:01]} d6 {[%clk 00:15:25]} {[%emt 00:00:01]} 7.
O-O {[%clk 00:15:23]} {[%emt 00:00:06]} c6 {[%clk 00:15:22]} {[%emt 00:00:09]}
8. d5 {[%clk 00:15:23]} {[%emt 00:00:05]} e5 {[%clk 00:15:25]} {[%emt
00:00:02]} 9. dxe6 {[%clk 00:15:24]} {[%emt 00:00:04]} Bxe6 {[%clk 00:15:28]}
{[%emt 00:00:01]} 10. b3 {[%clk 00:15:18]} {[%emt 00:00:12]} Na6 {[%clk
00:15:14]} {[%emt 00:00:19]} 11. Ng5 {[%clk 00:15:03]} {[%emt 00:00:20]} Qe7
{[%clk 00:15:16]} {[%emt 00:00:03]} 12. Nxe6 {[%clk 00:14:57]} {[%emt
00:00:11]} Qxe6 {[%clk 00:15:19]} {[%emt 00:00:02]} 13. Bb2 {[%clk 00:14:05]}
{[%emt 00:00:57]} Rad8 {[%clk 00:15:07]} {[%emt 00:00:17]} 14. Qd2 {[%clk
00:13:57]} {[%emt 00:00:13]} Nc5 {[%clk 00:14:19]} {[%emt 00:00:53]} 15. Rad1
{[%clk 00:13:40]} {[%emt 00:00:22]} Rfe8 {[%clk 00:13:48]} {[%emt 00:00:36]} 16.
e3 {[%clk 00:13:39]} {[%emt 00:00:06]} Nfe4 {[%clk 00:13:20]} {[%emt 00:00:33]}
17. Nxe4 {[%clk 00:13:41]} {[%emt 00:00:03]} fxe4 {[%clk 00:12:52]} {[%emt
00:00:33]} 18. Bxg7 {[%clk 00:13:19]} {[%emt 00:00:27]} Kxg7 {[%clk 00:12:56]}
{[%emt 00:00:02]} 19. Qa5 {[%clk 00:12:21]} {[%emt 00:01:03]} a6 {[%clk
00:08:42]} {[%emt 00:04:18]} 20. Rd4 {[%clk 00:12:20]} {[%emt 00:00:05]} Qf5
{[%clk 00:05:53]} {[%emt 00:02:55]} 21. Qc3 {[%clk 00:11:36]} {[%emt 00:00:49]}
Qf6 {[%clk 00:05:29]} {[%emt 00:00:29]} 22. Qc2 {[%clk 00:11:33]} {[%emt
00:00:08]} Qe6 {[%clk 00:02:02]} {[%emt 00:03:32]} 23. b4 {[%clk 00:11:22]}
{[%emt 00:00:15]} Nd7 {[%clk 00:02:05]} {[%emt 00:00:03]} 24. Rxe4 {[%clk
00:10:27]} {[%emt 00:01:01]} Qf7 {[%clk 00:01:47]} {[%emt 00:00:22]} 25. Rxe8
{[%clk 00:10:09]} {[%emt 00:00:23]} Rxe8 {[%clk 00:01:43]} {[%emt 00:00:09]} 26.
Rd1 {[%clk 00:10:12]} {[%emt 00:00:02]} Qf6 {[%clk 00:01:43]} {[%emt 00:00:06]}
27. Qd2 {[%clk 00:10:04]} {[%emt 00:00:12]} Re6 {[%clk 00:01:42]} {[%emt
00:00:06]} 28. Qd4 {[%clk 00:09:45]} {[%emt 00:00:24]} Ne5 {[%clk 00:01:27]}
{[%emt 00:00:20]} 29. h3 {[%clk 00:09:32]} {[%emt 00:00:18]} h5 {[%clk
00:01:28]} {[%emt 00:00:03]} 30. f4 {[%clk 00:09:17]} {[%emt 00:00:19]} Nd7
{[%clk 00:01:03]} {[%emt 00:00:31]} 31. Kf2 {[%clk 00:08:13]} {[%emt 00:01:09]}
Qxd4 {[%emt 00:00:37]} 32. exd4 {[%clk 00:08:10]} {[%emt 00:00:07]} Kf8 {[%clk
00:00:35]} {[%emt 00:00:03]} 33. d5 {[%clk 00:08:13]} {[%emt 00:00:02]} cxd5
{[%clk 00:00:24]} {[%emt 00:00:16]} 34. Bxd5 {[%clk 00:08:16]} {[%emt
00:00:02]} Rf6 {[%clk 00:00:23]} {[%emt 00:00:06]} 35. Bxb7 {[%clk 00:08:17]}
{[%emt 00:00:04]} g5 {[%clk 00:00:14]} {[%emt 00:00:14]} 36. Rd4 {[%clk
00:08:06]} {[%emt 00:00:16]} Ne5 {[%clk 00:00:11]} {[%emt 00:00:09]} 37. Ke3
{[%clk 00:07:31]} {[%emt 00:00:39]} h4 {[%clk 00:00:08]} {[%emt 00:00:07]} 38.
fxe5 {[%clk 00:07:33]} {[%emt 00:00:03]} 1-0